[Event "Live Chess"]
[Site "Chess.com"]
[Date "2023.05.20"]
[Round "-"]
[White "LiamClery2020"]
[Black "diana21strabt"]
[Result "1/2-1/2"]
[WhiteElo "2083"]
[BlackElo "1702"]
[TimeControl "300"]
[EndTime "13:49:16 PDT"]
[Termination "Game drawn by 50-move rule"]

1. e4 {[%clk 0:04:59]} 1... d5 {[%clk 0:04:58.6]} 2. exd5 {[%clk 0:04:51.9]}
2... Qxd5 {[%clk 0:04:57.3]} 3. Nc3 {[%clk 0:04:44.1]} 3... Qa5 {[%clk 0:04:56]}
4. d4 {[%clk 0:04:38.8]} 4... Nf6 {[%clk 0:04:54.8]} 5. Bd2 {[%clk 0:04:36]}
5... Bg4 {[%clk 0:04:53.6]} 6. Be2 {[%clk 0:04:32.7]} 6... Bxe2 {[%clk
0:04:52.3]} 7. Qxe2 {[%clk 0:04:32.1]} 7... Nc6 {[%clk 0:04:49.8]} 8. Nf3 {[%clk
0:04:24.8]} 8... O-O-O {[%clk 0:04:48.2]} 9. O-O {[%clk 0:04:21.9]} 9... Nxd4
{[%clk 0:04:39.9]} 10. Nxd4 {[%clk 0:04:20.4]} 10... Rxd4 {[%clk 0:04:38.8]} 11.
b4 {[%clk 0:04:19.2]} 11... Qh5 {[%clk 0:04:27.4]} 12. Qe3 {[%clk 0:04:00.8]}
12... e5 {[%clk 0:04:23.5]} 13. Nb5 {[%clk 0:03:57.4]} 13... Ng4 {[%clk
0:04:15.9]} 14. Qh3 {[%clk 0:03:46.6]} 14... Qxh3 {[%clk 0:04:12.6]} 15. gxh3
{[%clk 0:03:44.1]} 15... Rxd2 {[%clk 0:04:11.4]} 16. hxg4 {[%clk 0:03:43.1]}
16... Rxc2 {[%clk 0:04:09.4]} 17. Nxa7+ {[%clk 0:03:42.1]} 17... Kb8 {[%clk
0:04:08.3]} 18. Nb5 {[%clk 0:03:41.7]} 18... Bxb4 {[%clk 0:04:06.3]} 19. Rab1
{[%clk 0:03:38.9]} 19... Rc4 {[%clk 0:04:00]} 20. a3 {[%clk 0:03:34.8]} 20...
Rxg4+ {[%clk 0:03:58.9]} 21. Kh1 {[%clk 0:03:32.3]} 21... Bd6 {[%clk 0:03:57]}
22. Nc3 {[%clk 0:03:30.5]} 22... e4 {[%clk 0:03:55.2]} 23. Rfe1 {[%clk
0:03:28.7]} 23... Rh4 {[%clk 0:03:53.4]} 24. Nxe4 {[%clk 0:03:26.4]} 24... Rxh2+
{[%clk 0:03:45.9]} 25. Kg1 {[%clk 0:03:24.6]} 25... Rh4 {[%clk 0:03:41.2]} 26.
Nxd6 {[%clk 0:03:18.9]} 26... cxd6 {[%clk 0:03:40.1]} 27. Re7 {[%clk 0:03:18.5]}
27... Rg4+ {[%clk 0:03:30.9]} 28. Kf1 {[%clk 0:03:12.6]} 28... Rf4 {[%clk
0:03:02.6]} 29. Rbxb7+ {[%clk 0:03:09.8]} 29... Kc8 {[%clk 0:03:01]} 30. Rbc7+
{[%clk 0:03:08.8]} 30... Kd8 {[%clk 0:02:59]} 31. Red7+ {[%clk 0:03:06.8]} 31...
Ke8 {[%clk 0:02:55.3]} 32. Re7+ {[%clk 0:03:05.6]} 32... Kd8 {[%clk 0:02:53.7]}
33. Red7+ {[%clk 0:03:04.2]} 33... Ke8 {[%clk 0:02:52.6]} 34. Rxd6 {[%clk
0:03:01.9]} 34... Rf8 {[%clk 0:02:28.6]} 35. Rdd7 {[%clk 0:02:45.5]} 35... Re4
{[%clk 0:02:23.7]} 36. Ra7 {[%clk 0:02:41.8]} 36... h5 {[%clk 0:02:10.7]} 37.
Rdb7 {[%clk 0:02:34.8]} 37... Rd4 {[%clk 0:02:04.9]} 38. Rb8+ {[%clk 0:02:28.7]}
38... Rd8 {[%clk 0:02:03.2]} 39. Rbb7 {[%clk 0:02:28.2]} 39... Rd4 {[%clk
0:01:52.8]} 40. Re7+ {[%clk 0:02:17]} 40... Kd8 {[%clk 0:01:51.6]} 41. Rxf7
{[%clk 0:02:13.1]} 41... Rxf7 {[%clk 0:01:50.4]} 42. Rxf7 {[%clk 0:02:13]} 42...
g5 {[%clk 0:01:46.6]} 43. Rg7 {[%clk 0:02:10.5]} 43... g4 {[%clk 0:01:45.1]} 44.
Rh7 {[%clk 0:02:09.6]} 44... Rd5 {[%clk 0:01:44.1]} 45. Kg2 {[%clk 0:02:08.4]}
45... Ra5 {[%clk 0:01:40.2]} 46. Rh8+ {[%clk 0:02:04.9]} 46... Ke7 {[%clk
0:01:36.4]} 47. Rh6 {[%clk 0:02:03.9]} 47... Kf7 {[%clk 0:01:33.6]} 48. Kg3
{[%clk 0:02:00.4]} 48... Kg7 {[%clk 0:01:32.5]} 49. Rb6 {[%clk 0:01:55.9]} 49...
Rxa3+ {[%clk 0:01:31.1]} 50. Kh4 {[%clk 0:01:55.4]} 50... Rh3+ {[%clk
0:01:29.3]} 51. Kg5 {[%clk 0:01:54.3]} 51... g3 {[%clk 0:01:26.8]} 52. fxg3
{[%clk 0:01:52.7]} 52... Rxg3+ {[%clk 0:01:24.2]} 53. Kxh5 {[%clk 0:01:52.2]}
53... Rf3 {[%clk 0:01:21.3]} 54. Kg5 {[%clk 0:01:50.6]} 54... Rf7 {[%clk
0:01:14.6]} 55. Rb8 {[%clk 0:01:47.6]} 55... Rc7 {[%clk 0:01:11.1]} 56. Rb5
{[%clk 0:01:45.4]} 56... Rd7 {[%clk 0:01:09.2]} 57. Re5 {[%clk 0:01:43.7]} 57...
Rc7 {[%clk 0:01:08.1]} 58. Kf4 {[%clk 0:01:42.3]} 58... Rf7+ {[%clk 0:01:06.8]}
59. Ke4 {[%clk 0:01:41.1]} 59... Kg6 {[%clk 0:01:05.3]} 60. Ra5 {[%clk
0:01:39.6]} 60... Rf6 {[%clk 0:01:04.2]} 61. Ra2 {[%clk 0:01:36.8]} 61... Re6+
{[%clk 0:01:03.3]} 62. Kf4 {[%clk 0:01:36.1]} 62... Rf6+ {[%clk 0:01:02.4]} 63.
Ke5 {[%clk 0:01:35.7]} 63... Rf5+ {[%clk 0:01:01.4]} 64. Ke6 {[%clk 0:01:35.3]}
64... Rf6+ {[%clk 0:01:00.6]} 65. Ke7 {[%clk 0:01:34.9]} 65... Rf7+ {[%clk
0:00:59.6]} 66. Ke8 {[%clk 0:01:34.3]} 66... Rf5 {[%clk 0:00:58.4]} 67. Rg2+
{[%clk 0:01:33.8]} 67... Rg5 {[%clk 0:00:57.5]} 68. Rb2 {[%clk 0:01:33.7]} 68...
Re5+ {[%clk 0:00:56.5]} 69. Kd7 {[%clk 0:01:31.8]} 69... Rd5+ {[%clk 0:00:55.7]}
70. Ke6 {[%clk 0:01:31.3]} 70... Rf5 {[%clk 0:00:54.7]} 71. Rg2+ {[%clk
0:01:30.7]} 71... Rg5 {[%clk 0:00:53.8]} 72. Rf2 {[%clk 0:01:29.8]} 72... Kh5
{[%clk 0:00:51.1]} 73. Kf6 {[%clk 0:01:27.7]} 73... Rg4 {[%clk 0:00:50.2]} 74.
Rh2+ {[%clk 0:01:26.3]} 74... Rh4 {[%clk 0:00:49.1]} 75. Rg2 {[%clk 0:01:25.8]}
75... Rg4 {[%clk 0:00:47.4]} 76. Rd2 {[%clk 0:01:24.2]} 76... Kh4 {[%clk
0:00:46]} 77. Kf5 {[%clk 0:01:22.4]} 77... Rg3 {[%clk 0:00:44.8]} 78. Rd7 {[%clk
0:01:19]} 78... Kh3 {[%clk 0:00:42.9]} 79. Kf4 {[%clk 0:01:17.7]} 79... Rg4+
{[%clk 0:00:42]} 80. Kf3 {[%clk 0:01:16.8]} 80... Rg3+ {[%clk 0:00:41.2]} 81.
Kf2 {[%clk 0:01:16.3]} 81... Rg2+ {[%clk 0:00:40.5]} 82. Kf1 {[%clk 0:01:15.7]}
82... Rg4 {[%clk 0:00:38.7]} 83. Rh7+ {[%clk 0:01:15.1]} 83... Rh4 {[%clk
0:00:37.8]} 84. Ra7 {[%clk 0:01:15]} 84... Rg4 {[%clk 0:00:36.6]} 85. Ra3+
{[%clk 0:01:14]} 85... Rg3 {[%clk 0:00:35.7]} 86. Ra6 {[%clk 0:01:13.9]} 86...
Rg4 {[%clk 0:00:34.6]} 87. Kf2 {[%clk 0:01:12.8]} 87... Rg2+ {[%clk 0:00:33.3]}
88. Ke3 {[%clk 0:01:11.3]} 88... Rg3+ {[%clk 0:00:32.5]} 89. Kf4 {[%clk
0:01:10.7]} 89... Rg4+ {[%clk 0:00:31.7]} 90. Kf5 {[%clk 0:01:10.1]} 90... Rg2
{[%clk 0:00:28.8]} 91. Rh6+ {[%clk 0:01:08.8]} 91... Kg3 {[%clk 0:00:27.3]} 92.
Rb6 {[%clk 0:01:07.7]} 92... Kh2 {[%clk 0:00:26.1]} 93. Kf4 {[%clk 0:01:05.8]}
93... Rf2+ {[%clk 0:00:24.7]} 94. Ke3 {[%clk 0:01:05.3]} 94... Rg2 {[%clk
0:00:24]} 95. Rb8 {[%clk 0:01:03.3]} 95... Rg3+ {[%clk 0:00:22.8]} 96. Kf4
{[%clk 0:01:02]} 96... Rg2 {[%clk 0:00:21.2]} 97. Re8 {[%clk 0:00:58.6]} 97...
Rf2+ {[%clk 0:00:19.9]} 98. Ke3 {[%clk 0:00:56.7]} 98... Rg2 {[%clk 0:00:18.6]}
99. Re7 {[%clk 0:00:51.9]} 99... Rg3+ {[%clk 0:00:17.9]} 100. Kd4 {[%clk
0:00:50.1]} 100... Rg2 {[%clk 0:00:17.4]} 101. Rb7 {[%clk 0:00:47.8]} 101... Kg3
{[%clk 0:00:16.5]} 102. Ke4 {[%clk 0:00:46.1]} 102... Kh2 {[%clk 0:00:15.9]}
103. Rb3 {[%clk 0:00:42.5]} 1/2-1/2

[Event "Live Chess"]
[Site "Chess.com"]
[Date "2023.05.20"]
[Round "-"]
[White "LL220284LL"]
[Black "Reggie016"]
[Result "1-0"]
[WhiteElo "2391"]
[BlackElo "1070"]
[TimeControl "300"]
[EndTime "13:49:18 PDT"]
[Termination "LL220284LL won by resignation"]

1. Nf3 {[%clk 0:04:59.1]} 1... d5 {[%clk 0:04:56.1]} 2. b3 {[%clk 0:04:58.6]}
2... e6 {[%clk 0:04:55]} 3. Bb2 {[%clk 0:04:58.5]} 3... Nf6 {[%clk 0:04:54.1]}
4. e3 {[%clk 0:04:58.4]} 4... Be7 {[%clk 0:04:53.4]} 5. d4 {[%clk 0:04:57.8]}
5... O-O {[%clk 0:04:51.7]} 6. Bd3 {[%clk 0:04:57.5]} 6... Ne4 {[%clk
0:04:50.5]} 7. Nbd2 {[%clk 0:04:55.9]} 7... f5 {[%clk 0:04:47.7]} 8. O-O {[%clk
0:04:54.6]} 8... Nd7 {[%clk 0:04:45.3]} 9. Ne5 {[%clk 0:04:53.7]} 9... Nxe5
{[%clk 0:04:42.9]} 10. dxe5 {[%clk 0:04:53.6]} 10... Nxd2 {[%clk 0:04:31.6]} 11.
Qxd2 {[%clk 0:04:52.7]} 11... Bd7 {[%clk 0:04:29.3]} 12. Rad1 {[%clk 0:04:52.2]}
12... Be8 {[%clk 0:04:27.4]} 13. c4 {[%clk 0:04:51]} 13... Bh5 {[%clk
0:04:20.3]} 14. f3 {[%clk 0:04:50.1]} 14... a5 {[%clk 0:04:10.1]} 15. cxd5
{[%clk 0:04:47.3]} 15... Qxd5 {[%clk 0:04:02.1]} 16. Bc4 {[%clk 0:04:45.7]}
16... Qxd2 {[%clk 0:03:44.9]} 17. Bxe6+ {[%clk 0:04:43.8]} 17... Kh8 {[%clk
0:03:35.7]} 18. Rxd2 {[%clk 0:04:42.6]} 18... Bb4 {[%clk 0:03:33.8]} 19. Rd7
{[%clk 0:04:40.5]} 19... Rae8 {[%clk 0:03:15]} 20. Bc4 {[%clk 0:04:37.6]} 20...
Re7 {[%clk 0:03:10.4]} 21. Rfd1 {[%clk 0:04:35.6]} 21... Rxd7 {[%clk 0:02:58.5]}
22. Rxd7 {[%clk 0:04:35.5]} 22... Rc8 {[%clk 0:02:53.9]} 23. e6 {[%clk
0:04:34.5]} 23... Be8 {[%clk 0:02:48.5]} 24. Rxg7 {[%clk 0:04:31.6]} 1-0

[Event "Live Chess"]
[Site "Chess.com"]
[Date "2023.05.20"]
[Round "-"]
[White "terrub10"]
[Black "Shepherds_Pie"]
[Result "0-1"]
[WhiteElo "725"]
[BlackElo "1919"]
[TimeControl "300"]
[EndTime "13:49:19 PDT"]
[Termination "Shepherds_Pie won by checkmate"]

1. d4 {[%clk 0:04:57.3]} 1... d5 {[%clk 0:04:57.5]} 2. Nc3 {[%clk 0:04:55.2]}
2... e6 {[%clk 0:04:53.2]} 3. Nh3 {[%clk 0:04:48.8]} 3... c5 {[%clk 0:04:51]} 4.
Bg5 {[%clk 0:04:44.1]} 4... Qa5 {[%clk 0:04:45.9]} 5. Ng1 {[%clk 0:04:35.1]}
5... Nc6 {[%clk 0:04:37.5]} 6. Nf3 {[%clk 0:04:30.1]} 6... Nf6 {[%clk
0:04:34.3]} 7. Bxf6 {[%clk 0:04:25.1]} 7... gxf6 {[%clk 0:04:31.9]} 8. e4 {[%clk
0:04:22.6]} 8... dxe4 {[%clk 0:04:28.2]} 9. Nd2 {[%clk 0:04:14.9]} 9... cxd4
{[%clk 0:04:25.3]} 10. Ndxe4 {[%clk 0:04:12.5]} 10... Be7 {[%clk 0:04:18.3]} 11.
b4 {[%clk 0:04:03.6]} 11... Qxb4 {[%clk 0:04:13.8]} 12. Qd2 {[%clk 0:03:58.4]}
12... dxc3 {[%clk 0:04:08.9]} 13. Nxc3 {[%clk 0:03:51.7]} 13... Bd7 {[%clk
0:04:04.9]} 14. Bd3 {[%clk 0:03:34.1]} 14... Qxc3 {[%clk 0:03:59.2]} 15. Qxc3
{[%clk 0:03:31.7]} 15... Bb4 {[%clk 0:03:57.6]} 16. Qxb4 {[%clk 0:03:22.4]}
16... Nxb4 {[%clk 0:03:56.3]} 17. Rb1 {[%clk 0:03:14]} 17... Nxd3+ {[%clk
0:03:52.9]} 18. Kd2 {[%clk 0:03:11.5]} 18... Nxf2 {[%clk 0:03:47.6]} 19. Rhf1
{[%clk 0:03:08.6]} 19... Ne4+ {[%clk 0:03:45.4]} 20. Ke3 {[%clk 0:03:06.4]}
20... Bc6 {[%clk 0:03:44.1]} 21. Rfd1 {[%clk 0:02:55.6]} 21... f5 {[%clk
0:03:41.9]} 22. h3 {[%clk 0:02:49.6]} 22... Ke7 {[%clk 0:03:40.3]} 23. g4 {[%clk
0:02:48.2]} 23... fxg4 {[%clk 0:03:37.2]} 24. hxg4 {[%clk 0:02:47.2]} 24... Rad8
{[%clk 0:03:34.5]} 25. Rxd8 {[%clk 0:02:43.3]} 25... Rxd8 {[%clk 0:03:32.4]} 26.
Rg1 {[%clk 0:02:33.3]} 26... Rd5 {[%clk 0:03:28.5]} 27. Rh1 {[%clk 0:02:30.9]}
27... Ng5 {[%clk 0:03:24.6]} 28. Kf4 {[%clk 0:02:25.4]} 28... f6 {[%clk
0:03:17.8]} 29. c4 {[%clk 0:02:18.4]} 29... Rd4+ {[%clk 0:03:16.5]} 30. Kg3
{[%clk 0:02:14.6]} 30... Bxh1 {[%clk 0:03:14]} 31. c5 {[%clk 0:02:11.8]} 31...
e5 {[%clk 0:03:08.7]} 32. c6 {[%clk 0:02:08]} 32... Bxc6 {[%clk 0:03:06.4]} 33.
a4 {[%clk 0:02:06.3]} 33... Rd3+ {[%clk 0:03:04.2]} 34. Kh4 {[%clk 0:02:03.7]}
34... Rh3# {[%clk 0:03:02.6]} 0-1

[Event "Live Chess"]
[Site "Chess.com"]
[Date "2023.05.20"]
[Round "-"]
[White "Stanbad1"]
[Black "KGreenGator"]
[Result "1-0"]
[WhiteElo "2408"]
[BlackElo "1770"]
[TimeControl "300"]
[EndTime "13:49:22 PDT"]
[Termination "Stanbad1 won by checkmate"]

1. d4 {[%clk 0:04:56.9]} 1... Nf6 {[%clk 0:04:58.4]} 2. Nc3 {[%clk 0:04:55.5]}
2... d5 {[%clk 0:04:57.7]} 3. Bf4 {[%clk 0:04:55.1]} 3... a6 {[%clk 0:04:55.9]}
4. e3 {[%clk 0:04:54.2]} 4... e6 {[%clk 0:04:53.9]} 5. Bd3 {[%clk 0:04:53.7]}
5... h6 {[%clk 0:04:52.1]} 6. Nf3 {[%clk 0:04:52.6]} 6... Nc6 {[%clk 0:04:49.1]}
7. Ne5 {[%clk 0:04:51.5]} 7... Bd7 {[%clk 0:04:46.6]} 8. h4 {[%clk 0:04:48.8]}
8... Be7 {[%clk 0:04:43.2]} 9. Qf3 {[%clk 0:04:46.6]} 9... Nb4 {[%clk 0:04:41]}
10. Qg3 {[%clk 0:04:44.3]} 10... Bf8 {[%clk 0:04:36]} 11. Nxd7 {[%clk
0:04:34.1]} 11... Qxd7 {[%clk 0:04:32.6]} 12. Bxc7 {[%clk 0:04:33.7]} 12...
Nxd3+ {[%clk 0:04:28.4]} 13. cxd3 {[%clk 0:04:31.6]} 13... Rc8 {[%clk
0:04:26.3]} 14. Be5 {[%clk 0:04:29.8]} 14... Qe7 {[%clk 0:04:22.1]} 15. O-O
{[%clk 0:04:27.4]} 15... g6 {[%clk 0:04:16.6]} 16. Qf3 {[%clk 0:04:24.1]} 16...
Bg7 {[%clk 0:04:15.6]} 17. e4 {[%clk 0:04:21.7]} 17... dxe4 {[%clk 0:04:12.1]}
18. dxe4 {[%clk 0:04:16.6]} 18... O-O {[%clk 0:04:10.8]} 19. Rad1 {[%clk
0:04:09.2]} 19... Nd7 {[%clk 0:04:06.6]} 20. Bxg7 {[%clk 0:04:06.8]} 20... Kxg7
{[%clk 0:04:04.8]} 21. e5 {[%clk 0:04:06.7]} 21... Qxh4 {[%clk 0:04:02.6]} 22.
Qxb7 {[%clk 0:04:04.4]} 22... Rfd8 {[%clk 0:03:55.2]} 23. Qxa6 {[%clk
0:04:02.6]} 23... Ra8 {[%clk 0:03:50.2]} 24. Qe2 {[%clk 0:03:59.7]} 24... Rab8
{[%clk 0:03:41.3]} 25. Ne4 {[%clk 0:03:51.4]} 25... Nb6 {[%clk 0:03:31.9]} 26.
Nc5 {[%clk 0:03:48.5]} 26... Nd5 {[%clk 0:03:28.3]} 27. Rd2 {[%clk 0:03:38.5]}
27... Nf4 {[%clk 0:03:25.9]} 28. Qf3 {[%clk 0:03:35.3]} 28... Qg5 {[%clk
0:03:19.6]} 29. Ne4 {[%clk 0:03:32.5]} 29... Qf5 {[%clk 0:03:14.7]} 30. g3
{[%clk 0:03:28.5]} 30... Nd5 {[%clk 0:03:09.6]} 31. Qxf5 {[%clk 0:03:27]} 31...
gxf5 {[%clk 0:03:05.6]} 32. Nc5 {[%clk 0:03:26.3]} 32... Rb4 {[%clk 0:03:00.9]}
33. a3 {[%clk 0:03:23.9]} 33... Rb5 {[%clk 0:02:55.5]} 34. b4 {[%clk 0:03:22.3]}
34... f4 {[%clk 0:02:45.9]} 35. Rc1 {[%clk 0:03:18.6]} 35... fxg3 {[%clk
0:02:41.3]} 36. fxg3 {[%clk 0:03:15.6]} 36... Ne3 {[%clk 0:02:40.4]} 37. Ne4
{[%clk 0:03:11.4]} 37... Nf5 {[%clk 0:02:37.4]} 38. Rc7 {[%clk 0:03:07]} 38...
Rxd4 {[%clk 0:02:26.3]} 39. Rxd4 {[%clk 0:03:03]} 39... Nxd4 {[%clk 0:02:25.2]}
40. Nd6 {[%clk 0:03:01.8]} 40... Rxe5 {[%clk 0:02:18.7]} 41. Rxf7+ {[%clk
0:03:00.9]} 41... Kg6 {[%clk 0:02:16.9]} 42. Rd7 {[%clk 0:03:00.2]} 42... Nf5
{[%clk 0:01:56.4]} 43. Nxf5 {[%clk 0:02:55.9]} 43... exf5 {[%clk 0:01:54.2]} 44.
Rb7 {[%clk 0:02:53.1]} 44... Re3 {[%clk 0:01:52.8]} 45. a4 {[%clk 0:02:51.2]}
45... Rxg3+ {[%clk 0:01:51.5]} 46. Kf2 {[%clk 0:02:50.4]} 46... Ra3 {[%clk
0:01:50]} 47. a5 {[%clk 0:02:49.7]} 47... h5 {[%clk 0:01:45.8]} 48. Rb6+ {[%clk
0:02:48.5]} 48... Kf7 {[%clk 0:01:44.2]} 49. a6 {[%clk 0:02:48.4]} 49... Ke7
{[%clk 0:01:41.8]} 50. b5 {[%clk 0:02:47.3]} 50... Kd7 {[%clk 0:01:40.7]} 51.
Rb7+ {[%clk 0:02:46]} 51... Kc8 {[%clk 0:01:39.2]} 52. Rf7 {[%clk 0:02:45]}
52... Ra2+ {[%clk 0:01:32.9]} 53. Kf3 {[%clk 0:02:43.4]} 53... Ra1 {[%clk
0:01:27.2]} 54. a7 {[%clk 0:02:42.1]} 54... Ra3+ {[%clk 0:01:16.2]} 55. Kf4
{[%clk 0:02:39.8]} 55... Ra4+ {[%clk 0:01:14.7]} 56. Kxf5 {[%clk 0:02:39.1]}
56... Ra3 {[%clk 0:01:09.3]} 57. b6 {[%clk 0:02:37.6]} 57... Rf3+ {[%clk
0:01:06.5]} 58. Ke6 {[%clk 0:02:34.2]} 58... Rxf7 {[%clk 0:01:01.2]} 59. Kxf7
{[%clk 0:02:33.5]} 59... Kb7 {[%clk 0:01:00.4]} 60. Ke6 {[%clk 0:02:32.8]} 60...
h4 {[%clk 0:00:54.8]} 61. Kd7 {[%clk 0:02:31.8]} 61... h3 {[%clk 0:00:53.4]} 62.
a8=Q+ {[%clk 0:02:30.5]} 62... Kxa8 {[%clk 0:00:51.6]} 63. Kc7 {[%clk
0:02:30.1]} 63... h2 {[%clk 0:00:49.4]} 64. b7+ {[%clk 0:02:29.1]} 64... Ka7
{[%clk 0:00:48.9]} 65. b8=Q+ {[%clk 0:02:27.6]} 65... Ka6 {[%clk 0:00:48.6]} 66.
Qb6# {[%clk 0:02:27.1]} 1-0

[Event "Live Chess"]
[Site "Chess.com"]
[Date "2023.05.20"]
[Round "-"]
[White "MaximKris"]
[Black "Richardallis"]
[Result "1-0"]
[WhiteElo "1856"]
[BlackElo "1878"]
[TimeControl "300"]
[EndTime "13:49:34 PDT"]
[Termination "MaximKris won by resignation"]

1. e4 {[%clk 0:04:58.6]} 1... d5 {[%clk 0:04:58.5]} 2. exd5 {[%clk 0:04:57.4]}
2... Nf6 {[%clk 0:04:57.5]} 3. Nc3 {[%clk 0:04:57.3]} 3... Nxd5 {[%clk
0:04:56.7]} 4. Nf3 {[%clk 0:04:56.3]} 4... Bg4 {[%clk 0:04:54.8]} 5. Be2 {[%clk
0:04:55]} 5... c6 {[%clk 0:04:53.3]} 6. h3 {[%clk 0:04:53.8]} 6... Bxf3 {[%clk
0:04:52.2]} 7. Bxf3 {[%clk 0:04:52.9]} 7... e6 {[%clk 0:04:51.8]} 8. Nxd5 {[%clk
0:04:51.2]} 8... cxd5 {[%clk 0:04:50.8]} 9. O-O {[%clk 0:04:51.1]} 9... Nc6
{[%clk 0:04:49.8]} 10. d4 {[%clk 0:04:51]} 10... Bd6 {[%clk 0:04:48.7]} 11. c3
{[%clk 0:04:50.9]} 11... O-O {[%clk 0:04:47.6]} 12. Be3 {[%clk 0:04:50.8]} 12...
Rc8 {[%clk 0:04:45.7]} 13. Re1 {[%clk 0:04:50.2]} 13... Bb8 {[%clk 0:04:44.6]}
14. Qd3 {[%clk 0:04:49.7]} 14... Qc7 {[%clk 0:04:43.2]} 15. Rad1 {[%clk
0:04:49.2]} 15... Qh2+ {[%clk 0:04:41.3]} 16. Kf1 {[%clk 0:04:48.7]} 16... Rfe8
{[%clk 0:04:38.3]} 17. Ke2 {[%clk 0:04:48.1]} 17... a6 {[%clk 0:04:35.5]} 18. g3
{[%clk 0:04:47.6]} 18... Qxh3 {[%clk 0:04:31.8]} 19. Rh1 {[%clk 0:04:46.9]}
19... Qf5 {[%clk 0:04:29.7]} 20. Qxf5 {[%clk 0:04:46]} 20... exf5 {[%clk
0:04:28.6]} 21. Bxd5 {[%clk 0:04:45.4]} 21... Rcd8 {[%clk 0:04:25.2]} 22. Bxc6
{[%clk 0:04:44.7]} 22... bxc6 {[%clk 0:04:24.1]} 23. b4 {[%clk 0:04:39.9]} 23...
g5 {[%clk 0:04:22.7]} 24. Kd3 {[%clk 0:04:35.4]} 24... f6 {[%clk 0:04:21.3]} 25.
a4 {[%clk 0:04:32.5]} 25... Kg7 {[%clk 0:04:19.6]} 26. c4 {[%clk 0:04:30.8]}
26... Bd6 {[%clk 0:04:15.1]} 27. c5 {[%clk 0:04:28.9]} 27... Bc7 {[%clk
0:04:14.2]} 28. a5 {[%clk 0:04:27.5]} 28... Rb8 {[%clk 0:04:11.8]} 29. Kc4
{[%clk 0:04:14]} 29... Red8 {[%clk 0:04:10.4]} 30. f4 {[%clk 0:04:11.8]} 30...
g4 {[%clk 0:04:08.8]} 31. d5 {[%clk 0:04:08.6]} 31... cxd5+ {[%clk 0:04:06.8]}
32. Rxd5 {[%clk 0:04:08.5]} 32... Rxd5 {[%clk 0:04:05.6]} 33. Kxd5 {[%clk
0:04:08.4]} 33... Rxb4 {[%clk 0:04:04.8]} 34. Kc6 {[%clk 0:04:08.3]} 34... Bxa5
{[%clk 0:04:03.3]} 35. Ra1 {[%clk 0:04:06.2]} 35... Rb5 {[%clk 0:03:59.3]} 36.
Kd7 {[%clk 0:04:05.2]} 36... h5 {[%clk 0:03:48.6]} 37. c6 {[%clk 0:04:02.5]}
37... Rd5+ {[%clk 0:03:47.1]} 38. Kc8 {[%clk 0:03:53]} 38... Rd3 {[%clk
0:03:45.5]} 39. Rxa5 {[%clk 0:03:49.8]} 39... Rxe3 {[%clk 0:03:43.3]} 40. Rxf5
{[%clk 0:03:48.7]} 40... Kg6 {[%clk 0:03:42.3]} 41. Rc5 {[%clk 0:03:46.7]} 41...
h4 {[%clk 0:03:38.9]} 42. gxh4 {[%clk 0:03:43.9]} 42... g3 {[%clk 0:03:37.8]}
43. c7 {[%clk 0:03:43.8]} 43... g2 {[%clk 0:03:36.1]} 44. Rc1 {[%clk 0:03:42.8]}
44... Kf5 {[%clk 0:03:32.9]} 45. Kd8 {[%clk 0:03:41.2]} 45... Rd3+ {[%clk
0:03:25.5]} 46. Ke8 {[%clk 0:03:37.7]} 46... Re3+ {[%clk 0:03:22.7]} 47. Kf8
{[%clk 0:03:35]} 47... Rc3 {[%clk 0:03:21.9]} 48. Rxc3 {[%clk 0:03:27.6]} 48...
g1=Q {[%clk 0:03:19.5]} 49. c8=Q+ {[%clk 0:03:27.5]} 49... Kxf4 {[%clk
0:03:18.7]} 50. Qc4+ {[%clk 0:03:23.4]} 50... Kf5 {[%clk 0:03:17]} 51. Rf3+
{[%clk 0:03:17.2]} 51... Ke5 {[%clk 0:03:16.1]} 52. Qe2+ {[%clk 0:03:12.2]}
52... Kd5 {[%clk 0:03:14.4]} 53. Rd3+ {[%clk 0:03:11.1]} 53... Kc4 {[%clk
0:03:12.6]} 54. Qc2+ {[%clk 0:03:09.4]} 1-0

[Event "Live Chess"]
[Site "Chess.com"]
[Date "2023.05.20"]
[Round "-"]
[White "Ferrarifan27"]
[Black "ameetghasi100"]
[Result "0-1"]
[WhiteElo "2060"]
[BlackElo "2687"]
[TimeControl "300"]
[EndTime "13:49:50 PDT"]
[Termination "ameetghasi100 won on time"]

1. e4 {[%clk 0:04:57.5]} 1... Nc6 {[%clk 0:04:59.9]} 2. d4 {[%clk 0:04:56.2]}
2... e5 {[%clk 0:04:59.1]} 3. dxe5 {[%clk 0:04:53.6]} 3... Nxe5 {[%clk 0:04:58]}
4. Nf3 {[%clk 0:04:52.8]} 4... Nxf3+ {[%clk 0:04:56]} 5. Qxf3 {[%clk 0:04:51.5]}
5... d6 {[%clk 0:04:55.6]} 6. Bc4 {[%clk 0:04:49.9]} 6... Nf6 {[%clk 0:04:55]}
7. Nc3 {[%clk 0:04:47]} 7... Be7 {[%clk 0:04:52.6]} 8. O-O {[%clk 0:04:45.6]}
8... O-O {[%clk 0:04:51]} 9. Bg5 {[%clk 0:04:40.6]} 9... c6 {[%clk 0:04:50.2]}
10. h3 {[%clk 0:04:37]} 10... Qa5 {[%clk 0:04:49.4]} 11. Bh4 {[%clk 0:04:32.8]}
11... b5 {[%clk 0:04:47.4]} 12. Bb3 {[%clk 0:04:30.9]} 12... Qc7 {[%clk
0:04:42.3]} 13. Rad1 {[%clk 0:04:26.8]} 13... a5 {[%clk 0:04:39.8]} 14. a3
{[%clk 0:04:24.3]} 14... Ba6 {[%clk 0:04:34.5]} 15. Rfe1 {[%clk 0:04:22.4]}
15... Rae8 {[%clk 0:04:34.1]} 16. Bg3 {[%clk 0:04:17.5]} 16... Nd7 {[%clk
0:04:31.1]} 17. Qd3 {[%clk 0:03:28.9]} 17... Ne5 {[%clk 0:04:20.2]} 18. Bxe5
{[%clk 0:03:26.3]} 18... dxe5 {[%clk 0:04:20.1]} 19. Qd7 {[%clk 0:03:24.9]}
19... Rc8 {[%clk 0:04:19]} 20. Ne2 {[%clk 0:03:12]} 20... Rfd8 {[%clk
0:03:58.4]} 21. Qf5 {[%clk 0:03:05.5]} 21... Bf8 {[%clk 0:03:49.2]} 22. Ng3
{[%clk 0:02:54.6]} 22... g6 {[%clk 0:03:47.5]} 23. Qg4 {[%clk 0:02:38.7]} 23...
Rxd1 {[%clk 0:03:43]} 24. Rxd1 {[%clk 0:02:37.2]} 24... Rd8 {[%clk 0:03:40]} 25.
h4 {[%clk 0:02:29]} 25... Bc8 {[%clk 0:03:34]} 26. Qf3 {[%clk 0:02:25]} 26...
Rxd1+ {[%clk 0:03:31.9]} 27. Qxd1 {[%clk 0:02:24]} 27... h5 {[%clk 0:03:23.9]}
28. Qd2 {[%clk 0:02:15.4]} 28... a4 {[%clk 0:03:07.7]} 29. Ba2 {[%clk
0:02:13.7]} 29... Qd6 {[%clk 0:03:05.4]} 30. Qg5 {[%clk 0:02:07.2]} 30... Be7
{[%clk 0:02:43.2]} 31. Qh6 {[%clk 0:01:54.8]} 31... Bxh4 {[%clk 0:02:42]} 32.
Bxf7+ {[%clk 0:01:00]} 32... Kxf7 {[%clk 0:02:36.9]} 33. Qh7+ {[%clk 0:00:59.3]}
33... Ke8 {[%clk 0:02:36.3]} 34. Kh2 {[%clk 0:00:25.5]} 34... Bxg3+ {[%clk
0:02:34.8]} 35. fxg3 {[%clk 0:00:24.8]} 35... Bg4 {[%clk 0:02:33.7]} 36. Qg8+
{[%clk 0:00:21.5]} 36... Kd7 {[%clk 0:02:32.3]} 37. Qg7+ {[%clk 0:00:20.1]}
37... Kc8 {[%clk 0:02:31.3]} 38. Qg8+ {[%clk 0:00:19.3]} 38... Kc7 {[%clk
0:02:30.6]} 39. Qg7+ {[%clk 0:00:18.2]} 39... Kb6 {[%clk 0:02:29.9]} 40. Qg8
{[%clk 0:00:16.7]} 40... Bd7 {[%clk 0:02:23.7]} 41. Qd8+ {[%clk 0:00:15]} 41...
Qc7 {[%clk 0:02:21.8]} 42. Qf6 {[%clk 0:00:10.6]} 42... Bg4 {[%clk 0:02:18.9]}
43. Qxg6 {[%clk 0:00:09.4]} 43... Kb7 {[%clk 0:02:18.4]} 44. Qf6 {[%clk
0:00:08]} 44... c5 {[%clk 0:02:17.7]} 45. Qf8 {[%clk 0:00:04.8]} 45... Bd1
{[%clk 0:02:15.4]} 46. Qf6 {[%clk 0:00:02.2]} 46... Bxc2 {[%clk 0:02:12.8]} 47.
Qe6 {[%clk 0:00:01.3]} 47... Bxe4 {[%clk 0:02:11.2]} 0-1